bitfinex-derivatives/quotes_ETHF0:USTF0_20250614
["timestamp","ask_amount","ask_price","bid_price","bid_amount"]
[1749872574652,1.42204,2554.6,2554.5,24.56366268]
[1749872575854,0.6395,2554.6,2554.5,24.56366268]
[1749872577152,1.42204,2554.6,2554.5,24.56366268]
[1749872577546,4.62984,2554.6,2554.5,24.56366268]
[1749872578255,3.8473,2554.6,2554.5,24.56366268]
[1749872580158,4.62984,2554.6,2554.5,0.06809268]
[1749872580458,4.62984,2554.6,2554.5,23.77609268]
[1749872580658,4.62984,2554.6,2554.5,23.708]
[1749872580958,4.62984,2554.6,2554.5,24.49057]
[1749872581860,3.8473,2554.6,2554.5,24.49057]
[1749872583658,3.8473,2554.6,2554.5,24.55866268]
[1749872586457,0.00586568,2554.8,2554.7,0.78251]
[1749872586659,0.66246568,2554.8,2554.7,0.78251]
[1749872586858,1.44494568,2554.8,2554.7,24.49051]
[1749872595572,0.00586568,2554.8,2554.7,24.49051]
[1749872595876,0.78834568,2554.8,2554.7,24.49051]
[1749872597377,0.00586568,2554.8,2554.7,24.49051]
[1749872600983,0.00586568,2554.8,2554.7,24.55860268]
[1749872601170,0.78834568,2554.8,2554.7,23.77609268]
[1749872601375,0.78834568,2554.8,2554.7,0.06809268]
[1749872601680,2.12014568,2554.8,2554.7,0.06809268]
[1749872602480,7.12014568,2554.8,2554.7,0.06809268]
[1749872604271,2.12014568,2554.8,2554.7,0.06809268]
[1749872604477,7.12014568,2554.8,2554.7,0.06809268]
[1749872607387,0.78834568,2554.8,2554.7,0.85060268]
[1749872607684,0.00586568,2554.8,2554.7,0.85060268]
[1749872607879,0.00586568,2554.8,2554.7,2.41212879]
[1749872608587,0.00586568,2554.8,2554.7,3.06082879]
[1749872609287,0.00586568,2554.8,2554.7,1.49930268]
[1749872609779,0.00586568,2554.8,2554.7,2.84320268]
[1749872609986,3.2078,2555.2,2555.1,0.78239]
[1749872610984,3.2078,2555.2,2555.1,1.43109]
[1749872611580,3.2078,2555.2,2555.1,26.49599]
[1749872612589,0.00586568,2555.4,2555.3,0.78233]
[1749872612988,0.78816568,2555.4,2555.3,0.78233]
[1749872613291,0.78816568,2555.4,2555.3,0.6814]
[1749872613484,0.78816568,2555.4,2555.3,1.46373]
[1749872614392,0.78816568,2555.4,2555.3,0.6814]
[1749872614787,0.78816568,2555.4,2555.3,2.0463]
[1749872620090,0.78816568,2555.4,2555.3,0.6814]
[1749872620295,1.44936568,2555.4,2555.3,0.6814]
[1749872626695,0.00586568,2555.4,2555.3,1.46373]
[1749872627401,0.78816568,2555.4,2555.3,1.46373]
[1749872627893,0.78816568,2555.4,2555.3,25.16773]
[1749872628401,0.78816568,2555.4,2555.3,26.48453]
[1749872629605,0.78816568,2555.4,2555.3,25.7022]
[1749872630404,0.78816568,2555.4,2555.3,25.77029268]
[1749872634805,3.99596568,2555.4,2555.3,25.77029268]
[1749872635105,3.99596568,2555.4,2555.3,26.55262268]
[1749872635805,3.99596568,2555.4,2555.3,25.23582268]
[1749872641208,3.21366568,2555.4,2555.3,25.23582268]
[1749872641405,3.21366568,2555.4,2555.3,26.55082268]
[1749872642510,3.21366568,2555.4,2555.3,26.86173886]
[1749872642912,3.21366568,2555.4,2555.3,26.55082268]
[1749872643515,7.80185849,2557.1,2555.6,0.78224]
[1749872643516,3.2078,2555.7,2555.6,0.78224]
[1749872643812,3.2078,2555.7,2555.6,26.04458889]
[1749872643813,3.99001,2555.7,2555.6,26.04458889]
[1749872644512,3.99001,2555.7,2555.6,24.48124]
[1749872645917,3.99001,2555.7,2555.6,30.55024]
[1749872646318,3.99001,2555.7,2555.6,29.768]
[1749872647512,3.99001,2555.7,2555.6,30.55024]
[1749872648420,3.99001,2555.7,2555.6,0.78224]
[1749872648612,3.99001,2555.7,2555.6,24.48024]
[1749872650213,0.78224,2555.6,2555.5,6.068]
[1749872650516,1.46634,2555.6,2555.5,30.54727]
[1749872650707,1.46634,2555.6,2555.5,29.765]
[1749872650906,1.46634,2555.6,2555.5,6.068]
[1749872651117,1.46634,2555.6,2555.5,29.765]
[1749872651316,2.70304,2555.6,2555.5,29.765]
[1749872651622,0.78227,2555.5,2555.4,0.00586568]
[1749872651917,0.78227,2555.5,2555.4,23.70286568]
[1749872652508,2.07587,2555.5,2555.4,23.70286568]
[1749872652808,2.07587,2555.5,2555.4,24.48516568]
[1749872652809,0.78227,2555.5,2555.4,24.48516568]
[1749872654420,1.46635,2555.6,2555.5,0.78227]
[1749872655720,0.78227,2555.5,2555.4,24.48514568]
[1749872659623,0.78227,2555.5,2555.4,23.70286568]
[1749872659823,0.78227,2555.5,2555.4,24.48516568]
[1749872660122,0.78227,2555.5,2555.4,23.70286568]
[1749872662826,0.78227,2555.5,2555.4,24.48516568]
[1749872663324,0.78227,2555.5,2555.4,25.81034568]
[1749872664323,0.78227,2555.5,2555.4,25.02806568]
[1749872665017,0.78227,2555.5,2555.4,23.70286568]
[1749872668931,0.78227,2555.5,2555.4,24.48516568]
[1749872670534,0.78227,2555.5,2555.4,23.70286568]
[1749872673134,0.78227,2555.5,2555.4,24.48516568]
[1749872674630,0.78227,2555.5,2555.4,23.70286568]
[1749872675032,0.78227,2555.5,2555.4,23.77095836]
[1749872676248,3.99007,2555.5,2555.4,23.77095836]
[1749872677845,3.99007,2555.5,2555.4,0.07395836]
[1749872678448,5.35427,2555.5,2555.4,0.07395836]
[1749872679047,10.35427,2555.5,2555.4,0.07395836]
[1749872679244,11.03407,2555.5,2555.4,0.07395836]
[1749872679549,6.03407,2555.5,2555.4,0.07395836]
[1749872684949,0.78239,2555.1,2555.0,2.92784889]
[1749872685149,3.99019,2555.1,2555.0,1.3645]
[1749872687448,5.16379,2555.1,2554.8,1.56921457]
[1749872687654,0.78245,2554.9,2554.8,0.00586568]
[1749872692060,3.99025,2554.9,2554.8,0.00586568]
[1749872701563,3.2078,2554.9,2554.8,0.78834568]
[1749872701967,3.2078,2554.9,2554.8,2.02664568]
[1749872702466,3.2078,2554.9,2554.8,25.72764568]
[1749872703761,3.99025,2554.9,2554.8,25.72764568]
[1749872704571,3.2078,2554.9,2554.8,25.79573836]
[1749872706771,0.78245,2554.9,2554.8,25.79573836]
[1749872706973,3.99023,2555.0,2554.9,0.78245]
[1749872707173,3.99023,2555.0,2554.9,2.15215]
[1749872707471,3.99023,2555.0,2554.9,2.77135]
[1749872713368,0.00586568,2555.9,2554.9,10.1967]
[1749872713563,0.7823,2555.4,2555.3,1.56178504]
[1749872713765,0.78233,2555.3,2555.2,2.19138504]
[1749872713971,0.78239,2555.1,2555.0,8.27668504]
[1749872714171,0.78239,2555.1,2555.0,31.0625]
[1749872714672,0.6216,2555.3,2555.0,31.84492]
[1749872714971,0.78239,2555.1,2555.0,31.0625]
[1749872715170,0.78238,2555.2,2555.0,31.8449]
[1749872715476,0.78239,2555.1,2555.0,31.8449]
[1749872715774,0.6216,2555.3,2555.0,31.8449]
[1749872715974,0.78238,2555.2,2555.0,31.8449]
[1749872716570,0.78238,2555.2,2555.1,0.78239]
[1749872716776,0.6216,2555.3,2555.0,31.8449]
[1749872717076,0.78237,2555.2,2555.1,0.78238]
[1749872717679,0.78237,2555.2,2555.0,31.8449]
[1749872717978,0.6216,2555.3,2555.1,0.78239]
[1749872718182,0.78237,2555.2,2555.1,0.78239]
[1749872718879,1.40395,2555.3,2555.2,0.78236]
[1749872723282,1.40395,2555.3,2555.2,24.48536]
[1749872723887,1.40395,2555.3,2555.2,24.48236]
[1749872724984,1.40395,2555.3,2555.2,23.7]
[1749872726588,1.40395,2555.3,2555.2,24.48236]
[1749872728287,1.40395,2555.3,2555.2,23.7]
[1749872735899,1.40395,2555.3,2555.2,23.76809268]
[1749872738404,1.40395,2555.3,2555.2,0.06809268]
[1749872738602,1.9559,2555.2,2554.9,1.56178504]
[1749872738905,0.78245,2554.9,2554.8,0.00586568]
[1749872743703,0.78245,2554.9,2554.8,0.64066568]
[1749872743904,0.78245,2554.9,2554.8,1.92436568]
[1749872750211,0.78245,2554.9,2554.8,1.99245836]
[1749872754113,0.78245,2554.9,2554.8,0.70875836]
[1749872756801,0.78245,2554.9,2554.8,24.40775836]
[1749872778732,0.78245,2554.9,2554.8,25.9695434]
[1749872780832,0.78245,2554.9,2554.8,24.40775836]
[1749872783236,3.99025,2554.9,2554.8,0.07395836]
[1749872783734,3.99025,2554.9,2554.8,0.06809268]
[1749872783934,3.99025,2554.9,2554.3,1.5653296]
[1749872783935,0.7826,2554.4,2554.3,1.5653296]
[1749872784235,0.78267,2554.2,2554.1,26.3634]
[1749872784439,1.7389358,2554.2,2554.1,26.3634]
[1749872784641,0.78279,2553.8,2553.7,1.10218761]
[1749872784843,0.00586568,2554.0,2553.7,30.07836761]
[1749872785142,0.00586568,2554.0,2553.9,3.99054]
[1749872785537,0.00586568,2554.0,2553.9,34.40254]
[1749872794753,0.00586568,2554.0,2553.9,34.47063268]
[1749872794944,0.78859568,2554.0,2553.9,34.47063268]
[1749872795450,0.00586568,2554.0,2553.9,34.47063268]
[1749872795843,0.00586568,2554.0,2553.9,4.70963268]
[1749872796046,0.00586568,2554.0,2553.9,34.47263268]
[1749872800845,0.00586568,2554.0,2553.9,4.70963268]
[1749872801051,1.42729568,2554.0,2553.9,33.82163268]
[1749872802350,1.42729568,2554.0,2553.9,30.61383268]
[1749872804153,1.42729568,2554.0,2553.9,29.83109268]
[1749872805053,1.42729568,2554.0,2553.9,30.61385268]
[1749872805353,1.42729568,2554.0,2553.9,6.91485268]
[1749872805554,1.42729568,2554.0,2553.9,30.61385268]
[1749872805751,1.42729568,2554.0,2553.9,6.13209268]
[1749872805956,1.42729568,2554.0,2553.9,29.83109268]
[1749872806157,1.42729568,2554.0,2553.9,6.13209268]
[1749872806454,2.3847044,2554.0,2553.9,29.83109268]
[1749872808956,1.6019744,2554.0,2553.9,30.61385268]
[1749872809163,0.64456568,2554.0,2553.9,30.61385268]
[1749872809859,1.42729568,2554.0,2553.9,30.61385268]
[1749872810759,2.38532573,2554.0,2553.9,29.83109268]
[1749872811655,2.38532573,2554.0,2553.9,6.13209268]
[1749872811860,2.38532573,2554.0,2553.9,29.83209268]
[1749872813963,2.38532573,2554.0,2553.9,23.76809268]
[1749872814555,2.38532573,2554.0,2553.9,0.06809268]
[1749872814755,2.38532573,2554.0,2553.9,23.76809268]
[1749872820366,2.38532573,2554.0,2553.9,24.55085268]
[1749872826568,2.38532573,2554.0,2553.9,23.76809268]
[1749872829172,0.96389573,2554.0,2553.9,24.55085268]
[1749872829373,0.96389573,2554.0,2553.9,25.87365268]
[1749872829961,1.74662573,2554.0,2553.9,25.87365268]
[1749872830170,0.96389573,2554.0,2553.9,25.87365268]
[1749872833872,1.74662573,2554.0,2553.9,1.39089268]
[1749872834072,1.74662573,2554.0,2553.9,23.76609268]
[1749872834579,1.74662573,2554.0,2553.9,0.06809268]
[1749872834778,1.74662573,2554.0,2553.9,23.76609268]
[1749872837576,1.74662573,2554.0,2553.9,23.698]
[1749872838471,1.74662573,2554.0,2553.9,23.76609268]
[1749872840279,1.74662573,2554.0,2553.9,0.06809268]
[1749872840580,1.74662573,2554.0,2553.9,23.76609268]
[1749872849388,1.74662573,2554.0,2553.9,0.06809268]
[1749872849684,1.74662573,2554.0,2553.9,23.76509268]
[1749872850590,0.78859568,2554.0,2553.9,23.76509268]
[1749872850886,1.74636916,2554.0,2553.9,23.76509268]
[1749872852591,1.74636916,2554.0,2553.9,0.06809268]
[1749872852991,1.74636916,2554.0,2553.9,23.76509268]
[1749872857197,0.78285,2553.6,2553.5,2.34729304]
[1749872857493,1.74038945,2553.6,2553.5,0.00586568]
[1749872863604,1.74038945,2553.6,2553.5,1.89646568]
[1749872865605,1.74038945,2553.6,2553.5,0.63116568]
[1749872867103,1.74038945,2553.6,2553.5,0.00586568]
[1749872869908,1.74038945,2553.6,2553.5,0.07395836]
[1749872871013,3.03148945,2553.6,2553.5,0.07395836]
[1749872871307,1.74038945,2553.6,2553.5,0.07395836]
[1749872874313,3.08368945,2553.6,2553.5,0.07395836]
[1749872880510,0.783,2553.1,2553.0,0.6264]
[1749872880913,3.2078,2553.1,2552.7,1.2814]
[1749872881103,3.2078,2553.1,2552.5,5.54922736]
[1749872881104,1.95774,2552.9,2552.5,4.4855]
[1749872881304,0.78316,2552.6,2552.5,1.2777]
[1749872881714,1.73754399,2552.6,2552.5,1.2777]
[1749872882417,1.73700672,2552.6,2552.5,1.2777]
[1749872883412,0.78316,2552.6,2552.5,1.2777]
[1749872885113,0.78325,2552.3,2552.2,3.2078]
[1749872885612,0.78323,2552.4,2552.2,3.99106]
[1749872885817,0.78322,2552.4,2552.3,1.367]
[1749872889114,0.78325,2552.3,2552.2,3.2078]
[1749872889319,0.78331,2552.1,2552.0,7.3983]
[1749872889517,0.78331,2552.1,2552.0,32.458]
[1749872889718,0.78331,2552.1,2552.0,26.397]
[1749872889922,0.78331,2552.1,2552.0,2.694]
[1749872890521,1.95837,2552.0,2551.5,6.062]
[1749872890825,0.78346,2551.6,2551.5,6.7051]
[1749872891016,0.78346,2551.6,2551.5,31.19359]
[1749872891212,0.78346,2551.6,2551.5,0.6431]
[1749872891513,0.78346,2551.6,2551.5,24.3481]
[1749872891717,0.78346,2551.6,2551.5,0.6431]
[1749872891924,0.78346,2551.6,2551.5,1.3184]
[1749872893216,0.78346,2551.6,2551.5,0.6431]
[1749872894316,0.78346,2551.6,2551.3,3.2078]
[1749872894317,0.78352,2551.4,2551.3,3.2078]
[1749872895419,0.78355,2551.3,2551.2,1.3176]
[1749872898116,0.78362,2551.1,2551.0,3.2078]
[1749872899619,0.78362,2551.1,2551.0,3.99142]
[1749872899918,0.78362,2551.1,2551.0,3.2078]
[1749872902219,1.95908,2551.1,2550.7,3.2078]
[1749872902420,0.78371,2550.8,2550.7,3.2078]
[1749872903020,0.78371,2550.8,2550.7,4.5566]
[1749872904427,0.78374,2550.7,2550.6,1.2913]
[1749872905127,5.8434,2551.0,2550.4,3.2078]
[1749872905128,0.7838,2550.5,2550.4,3.2078]
[1749872905934,0.7838,2550.5,2550.3,2.0216]
[1749872906231,1.95978,2550.2,2549.0,0.32045929]
[1749872906429,0.78412,2549.5,2549.1,1.44891]
[1749872906627,3.2078,2549.5,2549.1,0.6647]
[1749872906831,3.2078,2549.4,2549.1,1.44892]
[1749872907125,3.2078,2549.4,2549.1,0.6647]
[1749872907329,0.7842,2549.2,2549.1,0.6647]
[1749872907931,0.78432,2548.8,2548.7,0.3200507]
[1749872908123,3.2078,2548.8,2547.9,3.2078]
[1749872908322,3.2078,2548.7,2547.6,0.6647]
[1749872908521,3.2136774,2548.4,2547.8,3.2078]
[1749872908933,3.2136774,2548.4,2547.8,8.2078]
[1749872909128,3.2078,2548.7,2548.2,3.2078]
[1749872909330,3.2078,2548.7,2548.4,0.78443]
[1749872909632,3.2078,2548.7,2548.6,0.78438]
[1749872909830,3.2078,2548.7,2548.6,11.069]
[1749872910026,3.2078,2548.7,2548.6,6.069]
[1749872910225,3.2078,2548.7,2548.4,24.98343]
[1749872910226,3.2078,2548.7,2548.5,6.069]
[1749872910528,3.99216,2548.7,2548.5,6.069]
[1749872910927,3.2078,2548.7,2548.5,6.069]
[1749872911131,3.2078,2548.7,2548.5,7.346]
[1749872911333,0.0058774,2548.9,2548.5,8.1304]
[1749872911536,0.7901774,2548.9,2548.5,7.346]
[1749872911738,0.0058774,2548.9,2548.5,8.1304]
[1749872912030,0.0058774,2548.9,2548.6,6.355]
[1749872912230,0.0058774,2548.9,2548.7,1.277]
[1749872913131,0.0058774,2548.9,2548.8,0.78432]
[1749872913638,0.0058774,2548.9,2548.8,5.78432]
[1749872916434,3.2078,2549.8,2549.7,0.78404]
[1749872916739,3.2078,2549.8,2549.4,6.355]
[1749872916935,0.78403,2549.8,2549.6,0.78406]
[1749872917131,3.2078,2549.7,2549.6,0.78406]
[1749872918533,3.2078,2549.7,2549.6,2.11846]
[1749872920436,3.2078,2549.7,2549.6,2.74916]
[1749872920738,3.99184,2549.7,2549.6,6.356]
[1749872921843,3.2078,2549.7,2549.6,7.14007]
[1749872922033,3.99184,2549.7,2549.6,6.356]
[1749872922342,3.99184,2549.7,2549.6,7.14007]
[1749872922532,3.99184,2549.7,2549.6,6.356]
[1749872923340,3.99184,2549.7,2549.6,7.14007]
[1749872923341,3.2078,2549.7,2549.6,7.14007]
[1749872923542,3.99184,2549.7,2549.6,6.356]
[1749872924140,5.94684,2549.7,2549.6,6.356]
[1749872924841,5.1628,2549.7,2549.2,0.6307]
[1749872925143,3.2078,2549.3,2549.2,25.0072]
[1749872925332,3.2078,2549.3,2549.2,31.3632]
[1749872925538,3.2078,2549.3,2549.2,0.7842]
[1749872925931,3.2078,2549.3,2549.1,6.356]
[1749872926143,3.99198,2549.3,2549.2,0.7842]
[1749872926337,3.2078,2549.3,2549.2,0.7842]
[1749872930647,3.2078,2549.3,2549.2,0.85229268]
[1749872931845,3.2078,2549.3,2549.2,2.14059268]
[1749872932953,0.78407,2549.6,2549.2,0.06809268]
[1749872933141,5.36137,2549.6,2549.5,0.7841]
[1749872933346,5.36139,2549.6,2549.5,0.7841]
[1749872933850,0.78411,2549.5,2549.4,0.78411]
[1749872934150,0.78416,2549.3,2549.2,0.06809268]
[1749872934448,3.99196,2549.3,2549.2,0.06809268]
[1749872935350,3.99196,2549.3,2549.2,0.85228268]
[1749872936455,3.99196,2549.3,2549.2,0.06809268]
[1749872939251,3.2078,2549.3,2549.2,0.85228268]
[1749872940153,3.99196,2549.3,2549.2,0.06809268]
[1749872941749,3.99196,2549.3,2549.2,0.85228268]
[1749872941951,3.99196,2549.3,2549.2,0.06809268]
[1749872943259,4.94740611,2549.3,2549.2,0.06809268]
[1749872945452,3.99196,2549.3,2549.2,0.06809268]
[1749872945659,4.94747866,2549.3,2549.2,0.06809268]
[1749872947252,4.16331866,2549.3,2549.2,0.85226268]
[1749872947451,3.2078,2549.3,2549.2,0.85226268]
[1749872949856,3.2078,2549.3,2549.2,5.19939004]
[1749872952662,0.78409,2549.5,2549.4,0.78411]
[1749872952855,3.99189,2549.5,2549.4,0.78411]
[1749872953055,3.2078,2549.5,2549.4,0.78411]
[1749872953263,3.2078,2549.5,2549.4,2.72221]
[1749872954161,3.2078,2549.8,2549.5,0.78408]
[1749872954362,3.2078,2549.8,2549.7,0.78402]
[1749872954960,3.2078,2549.8,2549.7,31.30802]
[1749872956165,3.99179,2549.8,2549.7,31.30802]
[1749872956361,3.2078,2549.8,2549.7,31.30802]
[1749872956659,3.2078,2549.8,2549.4,2.34142736]
[1749872956660,5.16779,2549.8,2549.4,2.34142736]
[1749872956960,0.78411,2549.4,2549.3,9.45654736]
[1749872957162,3.9919,2549.5,2549.4,0.78411]
[1749872957351,0.78411,2549.4,2549.3,33.64754736]
[1749872957559,3.2078,2549.5,2549.3,33.64754736]
[1749872957560,3.2078,2549.5,2549.3,32.86342736]
[1749872957759,5.30659,2549.5,2549.4,0.78411]
[1749872958763,3.2078,2549.5,2549.3,30.525]
[1749872959064,3.2078,2549.5,2549.4,0.78411]
[1749872959756,3.2078,2549.8,2549.7,0.78402]
[1749872959955,0.78414,2549.3,2549.2,1.31042736]
[1749872960266,0.78414,2549.3,2548.6,27.33757009]
[1749872960267,0.78419,2549.2,2548.6,27.33757009]
[1749872960564,2.71929,2549.2,2548.9,0.78423]
[1749872960765,2.71929,2549.2,2548.6,27.44155]
[1749872961164,1.9351,2549.2,2549.1,0.7842]
[1749872961566,2.71927,2549.2,2549.1,0.7842]
[1749872961758,2.71927,2549.2,2549.0,0.78422]
[1749872962470,1.9351,2549.2,2549.1,0.7842]
[1749872962662,0.78421,2549.1,2548.8,6.331]
[1749872962864,1.9351,2549.2,2549.0,0.78423]
[1749872963062,2.7193,2549.2,2548.9,0.78426]
[1749872963262,0.78421,2549.1,2548.9,0.78426]
[1749872964365,3.2078,2549.0,2548.9,0.78425]
[1749872964560,3.99203,2549.0,2548.9,0.78425]
[1749872964867,3.2078,2549.0,2548.9,0.78425]
[1749872965062,3.2078,2549.0,2548.8,6.331]
[1749872965260,3.2078,2549.0,2548.8,0.78427]
[1749872965261,3.99204,2549.0,2548.8,0.78427]
[1749872965463,4.5141,2549.0,2548.9,0.78426]
[1749872966066,3.2078,2549.0,2548.9,0.78426]
[1749872966771,3.2078,2549.0,2548.7,7.11531]
[1749872966975,0.78428,2548.9,2548.8,24.195]
[1749872967361,0.78428,2548.9,2548.7,31.30931]
[1749872967666,2.09058,2548.9,2548.7,31.30931]
[1749872968553,3.99205,2549.0,2548.8,0.78429]
[1749872968754,4.4855,2549.4,2548.8,3.99209]
[1749872968964,5.26962,2549.4,2549.2,0.78416]
[1749872969561,0.7842,2549.1,2549.0,0.6713]
[1749872969961,3.2078,2549.1,2549.0,0.6713]
[1749872970268,3.2078,2549.1,2549.0,1.45553]
[1749872970570,3.99183,2549.7,2549.1,1.96051]
[1749872970761,3.99183,2549.7,2549.5,0.78405]
[1749872970963,0.78405,2549.6,2549.4,0.78409]
[1749872971161,0.78405,2549.6,2549.4,31.32709]
[1749872971568,0.78405,2549.6,2549.5,0.78408]
[1749872972363,3.2078,2549.7,2549.6,0.78405]
[1749872973167,3.2078,2549.7,2549.6,2.15425]
[1749872973873,3.2078,2549.7,2549.6,0.78405]
[1749872974070,3.99183,2549.7,2549.5,25.63186]
[1749872974873,3.2078,2549.7,2549.5,24.8478]
[1749872975081,3.99183,2549.7,2549.5,25.63187]
[1749872975569,3.99183,2549.7,2549.5,24.8478]
[1749872975570,0.78405,2549.6,2549.5,24.8478]
[1749872976372,5.25103,2549.7,2549.5,25.63187]
[1749872976573,5.25103,2549.7,2549.6,24.22]
[1749872977477,5.25102,2549.7,2549.6,24.22]
[1749872979475,0.78405,2549.6,2549.5,6.9798]
[1749872979676,0.78405,2549.6,2549.5,31.1828]
[1749872980471,0.78405,2549.6,2549.5,30.541]
[1749872980769,2.09795,2549.6,2549.5,30.541]
[1749872982075,2.09795,2549.6,2549.5,6.338]
[1749872982272,2.09795,2549.6,2549.5,30.524]
[1749872983373,2.09795,2549.6,2549.5,6.338]
[1749872983674,2.09795,2549.6,2549.5,30.52]
[1749872985571,2.27300457,2549.6,2549.3,0.6535]
[1749872985778,3.99191,2549.4,2549.3,24.8165]
[1749872993879,0.78414,2549.3,2549.2,6.338]
[1749872994184,0.78414,2549.3,2549.2,30.475]
[1749872994676,3.2078,2549.4,2549.2,32.53737]
[1749872995181,0.78414,2549.3,2549.2,31.7532]
[1749872997078,3.99194,2549.3,2549.2,32.53737]
[1749872997275,3.99194,2549.3,2549.2,31.7532]
[1749872998085,3.2078,2549.3,2549.2,32.53737]
[1749872999787,3.99194,2549.3,2549.2,32.53737]
[1749873000389,3.2078,2549.3,2549.2,32.53737]
[1749873001094,3.99194,2549.3,2549.2,32.53737]
[1749873001688,3.99194,2549.3,2549.2,31.7532]
[1749873001885,3.2078,2549.3,2549.2,32.53737]
[1749873002388,3.99194,2549.3,2549.2,31.6412]
[1749873002587,3.99194,2549.3,2549.2,6.273]
[1749873002890,3.99194,2549.3,2549.2,30.363]
[1749873003795,3.99194,2549.3,2549.2,31.14717]
[1749873004492,3.2078,2549.3,2549.2,31.14717]
[1749873004693,3.2078,2549.3,2549.2,32.56836268]
[1749873005887,3.2078,2549.3,2549.2,32.55236268]
[1749873007294,3.2078,2549.3,2549.2,34.89725596]
[1749873009695,3.2078,2549.3,2549.2,8.47836268]
[1749873009898,3.2078,2549.3,2549.2,32.53736268]
[1749873010693,3.2078,2549.3,2549.2,30.40009268]
[1749873010993,3.2078,2549.3,2549.2,33.53457607]
[1749873011190,3.99194,2549.3,2549.2,30.40009268]
[1749873011396,4.66084,2549.3,2549.2,30.40009268]
[1749873012199,4.66084,2549.3,2549.2,31.18426268]
[1749873012393,3.8767,2549.3,2549.2,31.18426268]
[1749873012789,4.66084,2549.3,2549.2,30.40209268]
[1749873012990,4.66084,2549.3,2549.2,31.18626268]
[1749873013501,3.8767,2549.3,2549.2,31.18626268]
[1749873014494,5.99114,2549.3,2549.2,31.18626268]
[1749873014696,6.95225601,2549.3,2549.2,0.06809268]
[1749873015197,6.95225601,2549.3,2549.2,24.11509268]
[1749873015505,6.95225601,2549.3,2549.2,0.06809268]
[1749873016703,6.16811601,2549.3,2549.2,0.06809268]
[1749873016907,6.95225601,2549.3,2549.2,0.06809268]
[1749873017900,4.83781601,2549.3,2549.2,24.92426268]
[1749873018095,4.16891601,2549.3,2549.2,24.92426268]
[1749873018303,3.2078,2549.3,2549.2,24.92426268]
[1749873019507,3.2078,2549.3,2549.2,31.19826268]
[1749873020607,3.2078,2549.3,2549.2,33.54857607]
[1749873020810,3.2078,2549.3,2549.2,31.19826268]
[1749873023712,0.6753,2549.7,2549.6,0.78405]
[1749873024010,1.63556693,2549.7,2549.6,24.86305]
[1749873024211,3.2078,2549.8,2549.7,0.78402]
[1749873024414,0.0058774,2549.9,2549.8,0.78399]
[1749873024607,3.2136774,2549.9,2549.8,24.073]
[1749873024802,0.7898374,2549.9,2549.8,24.073]
[1749873025205,5.3438374,2549.9,2549.8,24.073]
[1749873025409,5.3438374,2549.9,2549.7,1.43319]
[1749873025611,5.3438374,2549.9,2549.8,24.121]
[1749873026211,0.78399,2549.8,2549.7,0.6492]
[1749873026411,0.78399,2549.8,2549.7,31.0422]
[1749873026714,4.5598774,2549.9,2549.7,31.0422]
[1749873027416,5.3438574,2549.9,2549.7,31.82622]
[1749873027615,0.78399,2549.8,2549.7,31.82622]
[1749873028912,0.78399,2549.8,2549.7,0.6492]
[1749873029117,0.78399,2549.8,2549.7,31.0272]
[1749873029317,0.78399,2549.8,2549.7,31.81122]
[1749873029519,0.78399,2549.8,2549.7,31.0272]
[1749873030720,0.78399,2549.8,2549.7,0.6492]
[1749873030916,0.78403,2549.7,2549.5,1.44416]
[1749873031118,0.78401,2549.8,2549.7,0.78402]
[1749873031519,0.78401,2549.8,2549.7,0.6655]
[1749873031717,0.78401,2549.8,2549.7,24.7585]
[1749873032618,0.78401,2549.8,2549.7,0.6655]
[1749873032925,0.7841,2549.5,2549.4,0.78411]
[1749873033120,0.7841,2549.5,2549.4,30.36]
[1749873034221,0.78411,2549.4,2549.3,3.79594068]
[1749873034514,0.78411,2549.4,2549.3,34.15494068]
[1749873034923,0.6462,2549.6,2549.3,34.15494068]
[1749873035522,0.78411,2549.4,2549.3,34.15494068]
[1749873036024,0.78411,2549.4,2549.3,3.01180068]
[1749873036323,0.78417,2549.2,2549.0,3.79762068]
[1749873036621,3.99194,2549.3,2549.2,6.272]
[1749873037318,0.7842,2549.1,2549.0,0.6648]
[1749873037528,0.78423,2549.0,2548.9,6.273]
[1749873037720,0.78423,2549.0,2548.9,30.356]
[1749873038326,3.99203,2549.0,2548.9,30.355]
[1749873039918,3.99203,2549.0,2548.9,6.273]
[1749873040124,4.61403,2549.0,2548.9,30.35]
[1749873041221,0.78426,2548.9,2548.8,0.6648]
[1749873041421,0.78429,2548.8,2548.7,29.993]
[1749873041621,0.78435,2548.6,2548.5,1.3204]
[1749873041821,0.78435,2548.6,2548.5,31.0154]
[1749873042829,0.78435,2548.6,2548.5,31.0184]
[1749873043029,0.78435,2548.6,2548.5,6.9444]
[1749873043229,0.78435,2548.6,2548.5,31.0194]
[1749873044933,3.2078,2548.7,2548.5,24.073]
[1749873045322,0.78435,2548.6,2548.5,24.073]
[1749873048927,0.78426,2548.9,2548.6,0.78433]
[1749873049123,0.78426,2548.9,2548.7,0.78432]
[1749873049326,0.78426,2548.9,2548.8,24.05]
[1749873049522,0.78426,2548.9,2548.8,24.6855]
[1749873050238,0.78426,2548.9,2548.8,25.46979]
[1749873051231,0.78426,2548.9,2548.8,24.6855]
[1749873052534,0.78426,2548.9,2548.8,25.46979]
[1749873052741,0.78426,2548.9,2548.8,24.6855]
[1749873053338,0.78426,2548.9,2548.8,24.6745]
[1749873055943,0.78426,2548.9,2548.8,24.6635]
[1749873056744,3.99206,2548.9,2548.8,24.6635]
[1749873057443,3.99206,2548.9,2548.8,24.028]
[1749873057646,5.24616,2548.9,2548.8,24.028]
[1749873058237,2.03836,2548.9,2548.8,24.028]
[1749873058548,0.78435,2548.6,2548.5,1.40779268]
[1749873058742,0.78435,2548.6,2548.5,31.69979268]
[1749873060439,0.78435,2548.6,2548.5,31.02609268]
[1749873062543,0.78435,2548.6,2548.5,7.00909268]